lending/lending_fUSD_20250701
["ID","MTS","AMOUNT","RATE_DAILY","PERIOD"]
[368726301,1751331038686,-300.0,0.00013792,2]
[368726302,1751331038696,-189.35636338,0.00013792,2]
[368726303,1751331038705,-345.7691999,0.00013792,2]
[368726304,1751331038717,-154.2308001,0.00013792,2]
[368726305,1751331038727,-500.0,0.00013792,2]
[368726306,1751331038741,-500.0,0.00013792,2]
[368726307,1751331038752,-500.0,0.00013792,2]
[368726308,1751331038762,-500.0,0.00013792,2]
[368726309,1751331038771,-138.75844187,0.00013793,2]
[368726310,1751331038879,-2355.30165813,0.00013793,2]
[368726311,1751331038889,-1000.0,0.00013799,2]
[368726312,1751331038899,-835.8297818,0.000138,2]
[368726313,1751331038909,-2667.98868462,0.000138,2]
[368726314,1751331038919,-1254.18219272,0.00013805,2]
[368726315,1751331038931,-1413.80649174,0.00013805,2]
[368726316,1751331038941,-150.0,0.00013806,2]
[368726317,1751331038950,-1305.79395171,0.00013808,2]
[368726319,1751331040034,-4297.234,0.00013808,2]
[368726320,1751331040047,-938.07635101,0.00013808,2]
[368726321,1751331040184,-480.71349133,0.00013808,2]
[368726322,1751331040197,-411.82312085,0.00013808,2]
[368726323,1751331040207,-150.0,0.0001381,2]
[368726324,1751331040217,-2667.98868446,0.00013811,2]
[368726325,1751331040227,-2667.98868446,0.00013816,2]
[368726326,1751331040237,-289.48393776,0.00013816,2]
[368726327,1751331040247,-2667.98868446,0.00013821,2]
[368726328,1751331040257,-2667.98868446,0.00013826,2]
[368726329,1751331040267,-2667.98868446,0.00013832,2]
[368726330,1751331040276,-150.0,0.00013835,2]
[368726331,1751331040286,-2667.98868446,0.00013837,2]
[368726332,1751331040295,-1995.7630918,0.00013842,2]
[368726333,1751331040370,-672.22559266,0.00013842,2]
[368726334,1751331040380,-2667.98868446,0.00013847,2]
[368726335,1751331040390,-150.0,0.00013852,2]
[368726336,1751331040401,-2667.98868446,0.00013853,2]
[368726337,1751331040411,-2667.98868446,0.00013858,2]
[368726338,1751331040423,-7708.68562875,0.00013863,2]
[368726339,1751331040435,-150.0,0.00013863,2]
[368726340,1751331040444,-2667.98868446,0.00013863,2]
[368726341,1751331040455,-150.0,0.00013864,2]
[368726342,1751331040465,-2667.98868446,0.00013868,2]
[368726343,1751331040474,-2667.98868446,0.00013874,2]
[368726344,1751331040484,-150.0,0.00013874,2]
[368726345,1751331040495,-150.0,0.00013878,2]
[368726346,1751331040505,-2667.98868446,0.00013879,2]
[368726347,1751331040515,-254.97966474,0.00013879,2]
[368726348,1751331040525,-151.0,0.00013879,2]
[368726349,1751331040535,-3559.822,0.00013879,2]
[368726350,1751331040545,-3559.82201,0.00013879,2]
[368726351,1751331040555,-3559.822,0.00013879,2]
[368726352,1751331040565,-150.0,0.0001388,2]
[368726353,1751331040576,-150.0,0.00013883,2]
[368726354,1751331040587,-150.0,0.00013884,2]
[368726355,1751331040597,-2667.98868446,0.00013884,2]
[368726356,1751331040608,-316.11,0.00013885,2]
[368726357,1751331040618,-200.0,0.00013888,2]
[368726358,1751331040629,-2667.98868446,0.00013889,2]
[368726359,1751331040639,-186.98832451,0.00013891,2]
[368726360,1751331040648,-8112.89479913,0.00013891,2]
[368726361,1751331040658,-22617.46439113,0.00013891,2]
[368726366,1751331043261,-425.86,0.00013779,2]
[368726367,1751331043271,-58034.53550887,0.00013891,2]
[368726369,1751331043281,-183.88985406,0.00013891,2]
[368726372,1751331043290,-169.98644316,0.00013891,2]
[368726374,1751331043299,-2667.98868446,0.00013895,2]
[368726376,1751331043308,-159.56605,0.000139,2]
[368726378,1751331043318,-500.0,0.000139,2]
[368726380,1751331043327,-500.0,0.000139,2]
[368726382,1751331043337,-151.76208581,0.000139,2]
[368726384,1751331043347,-5000.0,0.000139,2]
[368726387,1751331043356,-516.05857188,0.000139,2]
[368726389,1751331043366,-2667.98868446,0.000139,2]
[368726391,1751331043375,-150.0,0.000139,2]
[368726393,1751331043385,-350.6369992,0.000139,2]
[368726395,1751331043395,-235.10316135,0.000139,2]
[368726397,1751331043404,-377.59096463,0.000139,2]
[368726399,1751331043414,-1229.66019812,0.000139,2]
[368726401,1751331043424,-1168.988,0.0001391,2]
[368726403,1751331043433,-7993.90699701,0.00013918,2]
[368726405,1751331043442,-150.0,0.00013926,2]
[368726407,1751331043452,-150.0,0.00013943,2]
[368726409,1751331043462,-316.11,0.00013956,2]
[368726411,1751331043472,-1000.0,0.00013962,2]
[368726413,1751331043481,-3341.0,0.00013966,2]
[368726416,1751331043491,-948.0,0.00013966,2]
[368726417,1751331043501,-639.0,0.00013966,2]
[368726419,1751331043510,-804.0,0.00013966,2]
[368726421,1751331043520,-2009.0,0.00013966,2]
[368726423,1751331043529,-592.0,0.00013966,2]
[368726425,1751331043538,-1281.0,0.00013966,2]
[368726427,1751331043548,-930.0,0.00013966,2]
[368726429,1751331043558,-1679.0,0.00013966,2]
[368726431,1751331043568,-560.0,0.00013966,2]
[368726433,1751331043578,-886.0,0.00013966,2]
[368726435,1751331043588,-857.0,0.00013966,2]
[368726437,1751331043598,-4105.0,0.00013966,2]
[368726439,1751331043608,-7133.0,0.00013966,2]
[368726441,1751331043618,-156.0,0.00013966,2]
[368726443,1751331043628,-150.0,0.00013967,2]
[368726445,1751331043637,-500.0,0.0001397,2]
[368726447,1751331043646,-500.0,0.0001397,2]
[368726449,1751331043655,-544.75,0.00013971,2]
[368726451,1751331043664,-150.0,0.00013971,2]
[368726453,1751331043673,-500.0,0.00013973,2]
[368726455,1751331043683,-500.0,0.00013973,2]
[368726456,1751331043692,-162.04352035,0.00013973,2]
[368726457,1751331043702,-500.0,0.00013973,2]
[368726458,1751331043713,-500.0,0.00013973,2]
[368726459,1751331043722,-500.0,0.00013973,2]
[368726460,1751331043732,-500.0,0.00013973,2]
[368726461,1751331043745,-23834.0,0.00013973,2]
[368726462,1751331043754,-8289.6815559,0.00013973,2]
[368726463,1751331043763,-150.0,0.00013977,2]
[368726464,1751331043775,-316.11,0.0001398,2]
[368726465,1751331043784,-150.0,0.0001399,2]
[368726466,1751331043793,-151.46,0.0001399,2]
[368726467,1751331043803,-316.11,0.0001399,2]
[368726468,1751331043812,-316.11,0.0001399,2]
[368726471,1751331044187,-242.71498573,0.0001399,2]
[368726472,1751331044198,-242.71498573,0.0001399,2]
[368726473,1751331044208,-150.0,0.00013991,2]
[368726474,1751331044219,-500.0,0.00013991,2]
[368726475,1751331044229,-150.0,0.00013991,2]
[368726476,1751331044239,-500.0,0.00013991,2]
[368726477,1751331044248,-150.0,0.00013991,2]
[368726478,1751331044258,-500.0,0.00013991,2]
[368726479,1751331044267,-150.0,0.00013991,2]
[368726480,1751331044276,-150.94024333,0.00013991,2]
[368726481,1751331044286,-450.0,0.00013991,2]
[368726482,1751331044296,-150.0,0.00013991,2]
[368726483,1751331044306,-500.0,0.00013991,2]
[368726484,1751331044315,-150.0,0.00013991,2]
[368726485,1751331044325,-500.0,0.00013991,2]
[368726486,1751331044335,-150.0,0.00013991,2]
[368726487,1751331044344,-500.0,0.00013991,2]
[368726488,1751331044354,-500.0,0.00013991,2]
[368726489,1751331044364,-150.0,0.00013991,2]
[368726490,1751331044373,-500.0,0.00013991,2]
[368726491,1751331044383,-500.0,0.00013991,2]
[368726492,1751331044393,-500.0,0.00013991,2]
[368726493,1751331044402,-500.0,0.00013991,2]
[368726494,1751331044412,-500.0,0.00013991,2]
[368726495,1751331044421,-500.0,0.00013991,2]
[368726496,1751331044431,-500.0,0.00013991,2]
[368726497,1751331044440,-500.0,0.00013991,2]
[368726498,1751331044449,-500.0,0.00013991,2]
[368726499,1751331044459,-500.0,0.00013991,2]
[368726500,1751331044469,-150.0,0.00013991,2]
[368726501,1751331044479,-150.0,0.00013991,2]
[368726502,1751331044488,-500.0,0.00013991,2]
[368726503,1751331044498,-150.0,0.00013991,2]
[368726504,1751331044508,-500.0,0.00013991,2]
[368726505,1751331044518,-150.0,0.00013991,2]
[368726506,1751331044527,-1267.0,0.00013991,2]
[368726507,1751331044537,-544.75,0.00013998,2]
[368726508,1751331044547,-500.0,0.00013999,2]
[368726509,1751331044557,-500.0,0.00013999,2]
[368726510,1751331044566,-164.8149447,0.00013999,2]
[368726511,1751331044576,-500.0,0.00013999,2]
[368726512,1751331044585,-500.0,0.00013999,2]
[368726513,1751331044595,-500.0,0.00013999,2]
[368726514,1751331044604,-156.69995341,0.00013999,2]
[368726515,1751331044616,-500.0,0.00013999,2]
[368726516,1751331044626,-500.0,0.00013999,2]
[368726517,1751331044636,-500.0,0.00013999,2]
[368726518,1751331044646,-1157.69523303,0.00013999,5]
[368726519,1751331044656,-150.0,0.00013999,2]
[368726520,1751331044665,-150.0,0.00013999,2]
[368726521,1751331044675,-733.0,0.00014,2]
[368726522,1751331044685,-83154.51775945,0.00014,2]
[368726523,1751331044700,-901.2550101,0.00014,2]
[368726524,1751331044712,-4908.15603795,0.00014,2]
[368726525,1751331044913,-1229.66019803,0.00013939,2]
[368726526,1751331044922,-312.76857833,0.00014,2]
[368726549,1751331046427,-500.0,0.00013899,2]
[368726551,1751331046437,-59.15000214,0.00013899,2]
[368726558,1751331046487,-440.84999786,0.00013899,2]
[368726559,1751331046496,-500.0,0.00013899,2]
[368726560,1751331046506,-500.0,0.00013899,2]
[368726561,1751331046516,-500.0,0.00013899,2]
[368726562,1751331046525,-458.11606655,0.00013899,2]
[368726563,1751331046537,-41.88393345,0.00013899,2]
[368726564,1751331046547,-500.0,0.00013899,2]
[368726565,1751331046557,-500.0,0.00013899,2]
[368726566,1751331046567,-500.0,0.00013899,2]
[368726567,1751331046576,-46.17719495,0.00013899,2]
[368726632,1751331095113,11935.06,0.00013016,2]
[368726633,1751331540001,294.17,0.00012927,2]
[368726634,1751331635113,382.4091107,0.0002739,120]
[368726635,1751331842023,1350.26,0.0001293,2]
[368726636,1751331899320,521.0,0.00012314,2]
[368726637,1751331915720,1000.0,0.00012942,2]
[368726639,1751332000790,200.0,0.00012919,7]
[368726647,1751332083626,10678.39,0.00012915,2]
[368727276,1751332232199,-166.88,0.00013368,2]
[368727277,1751332232210,-999.99999999,0.000135,2]
[368727278,1751332232220,-250.0,0.00013548,2]
[368727279,1751332232231,-429.76,0.00013699,2]
[368727280,1751332232242,-150.0,0.00013738,2]
[368727281,1751332232252,-240.0,0.00013788,2]
[368727282,1751332232261,-300.0,0.00013789,2]
[368727283,1751332232272,-1200.0,0.00013789,2]
[368727284,1751332232281,-300.0,0.00013789,2]
[368727285,1751332232291,-6912.642,0.0001379,2]
[368727286,1751332232301,-207.4,0.0001379,2]
[368727287,1751332232310,-835.8297818,0.00013817,2]
[368727288,1751332232321,-150.0,0.00013817,2]
[368727289,1751332232330,-1000.0,0.00013844,2]
[368727290,1751332232341,-1538.28545483,0.00013845,2]
[368727293,1751332232386,-739.45581812,0.00013845,2]
[368727387,1751332238664,-3307.94270026,0.00013845,2]
[368727389,1751332238674,-6311.32273304,0.00013873,2]
[368727395,1751332238729,-790.5,0.00013873,2]
[368727564,1751332240503,-150.0,0.0001373,2]
[368727566,1751332240513,-118.625,0.00013753,2]
[368727831,1751332243234,-150.0,0.00013739,2]
[368727833,1751332243243,-31.375,0.00013753,2]
[368727835,1751332243253,-228.97107854,0.00013763,2]
[368727837,1751332243262,-48.77370246,0.00013785,2]
[368727841,1751332243298,-101.22629754,0.00013785,2]
[368727843,1751332243308,-150.0,0.000138,2]
[368727845,1751332243317,-150.0,0.00013826,2]
[368727847,1751332243326,-150.0,0.0001386,2]
[368727849,1751332243336,-150.0,0.00013866,2]
[368727851,1751332243345,-150.0,0.00013868,2]
[368727853,1751332243354,-150.0,0.0001387,2]
[368727855,1751332243364,-2964.57316696,0.00013873,2]
[368727857,1751332243373,-150.0,0.00013875,2]
[368727859,1751332243382,-150.0,0.00013881,2]
[368727861,1751332243392,-71.68072424,0.00013884,2]
[368728114,1751332246054,-840.52493902,0.00013884,2]
[368729953,1751332432789,600.0,0.00027397,120]
[368729954,1751332432930,600.0,0.00027397,120]
[368729955,1751332433032,231.28461969,0.00027397,120]
[368729956,1751332500010,602.97,0.00012895,2]
[368729958,1751332895819,1000.0,0.00012829,2]
[368729959,1751333044830,490.0,0.00027397,120]
[368729960,1751333046177,200.0,0.00012824,7]
[368729961,1751333145212,294.17,0.00012813,2]
[368730167,1751333432445,-204.311956,0.00013322,2]
[368730168,1751333432455,-166.68,0.00013323,2]
[368730169,1751333432464,-466.0,0.00013499,2]
[368730170,1751333432473,-917.83374631,0.00013499,2]
[368730172,1751333432542,-282.16625369,0.00013499,2]
[368730173,1751333432552,-150.0,0.00013499,2]
[368730174,1751333432561,-1338.62120645,0.000135,3]
[368730175,1751333432574,-10269.40784009,0.000135,3]
[368730176,1751333432586,-2958.79063896,0.000135,3]
[368730179,1751333432671,-55385.06346482,0.000135,3]
[368730320,1751333438256,-1951.4740516,0.000135,3]
[368730321,1751333438266,-204.311956,0.000135,2]
[368730322,1751333438276,-204.311956,0.000135,2]
[368730323,1751333438286,-846.55521,0.00013575,2]
[368730324,1751333438295,-545.0,0.00013612,2]
[368730325,1751333438305,-200.0,0.00013699,2]
[368730326,1751333438315,-238.94598321,0.00013699,2]
[368730327,1751333438338,-199.89401679,0.00013699,2]
[368730328,1751333438347,-150.0,0.00013701,2]
[368730329,1751333438356,-22.24706362,0.00013706,2]
[368730330,1751333438509,-127.75293638,0.00013706,2]
[368730331,1751333438519,-197.75876762,0.00013729,2]
[368730332,1751333438530,-802.24123238,0.00013729,2]
[368730333,1751333438543,-150.0,0.00013732,2]
[368730334,1751333438553,-150.0,0.00013736,2]
[368730335,1751333438562,-112.10693689,0.00013742,2]
[368730336,1751333438575,-515.4242036,0.00013742,2]
[368730337,1751333438587,-3145.05065938,0.00013742,2]
[368730338,1751333438597,-207.4,0.00013742,2]
[368730339,1751333438607,-150.0,0.00013753,2]
[368730340,1751333438616,-232.8652848,0.00013776,2]
[368730341,1751333438629,-67.1347152,0.00013776,2]
[368730342,1751333438639,-194.7852848,0.00013776,2]
[368730343,1751333438669,-305.2147152,0.00013776,2]
[368730344,1751333438679,-500.0,0.00013776,2]
[368730345,1751333438689,-500.0,0.00013776,2]
[368730346,1751333438699,-500.0,0.00013776,2]
[368730347,1751333438709,-500.0,0.00013776,2]
[368730348,1751333438718,-300.0,0.00013776,2]
[368730349,1751333438728,-300.0,0.00013776,2]
[368730350,1751333438738,-300.0,0.00013776,2]
[368730351,1751333438747,-500.0,0.00013776,2]
[368730352,1751333438757,-500.0,0.00013776,2]
[368730353,1751333438766,-500.0,0.00013776,2]
[368730354,1751333438776,-164.07202006,0.00013776,2]
[368730358,1751333441158,-206.336459,0.00013719,2]
[368730359,1751333441169,-335.92797994,0.00013776,2]
[368730360,1751333441179,-500.0,0.00013776,2]
[368730361,1751333441190,-158.87486155,0.00013783,2]
[368730362,1751333441200,-2500.0,0.00013783,2]
[368730363,1751333441211,-705.2018,0.00013784,2]
[368730364,1751333441221,-150.0,0.00013784,2]
[368730365,1751333441231,-983.72815846,0.00013797,2]
[368730366,1751333441241,-150.0,0.00013801,2]
[368730367,1751333441257,-1000.0,0.00013802,2]
[368730368,1751333441267,-983.72815842,0.00013808,2]
[368730369,1751333441277,-150.0,0.00013817,2]
[368730370,1751333441288,-983.72815842,0.0001382,2]
[368730371,1751333441298,-158.87486154,0.00013822,2]
[368730372,1751333441309,-983.72815842,0.00013831,2]
[368730373,1751333441320,-150.0,0.00013836,2]
[368730374,1751333441334,-983.72815842,0.00013843,2]
[368730375,1751333441345,-150.0,0.00013851,2]
[368730376,1751333441355,-983.72815842,0.00013854,2]
[368730377,1751333441365,-158.87486154,0.00013861,2]
[368730378,1751333441375,-835.8297818,0.00013863,2]
[368730379,1751333441386,-2376.3122,0.00013863,2]
[368730380,1751333441398,-584.38,0.00013864,2]
[368730381,1751333441409,-490.0,0.00013864,2]
[368730382,1751333441424,-490.0,0.00013864,2]
[368730383,1751333441434,-490.0,0.00013864,2]
[368730384,1751333441444,-490.0,0.00013864,2]
[368730385,1751333441454,-739.2,0.00013864,2]
[368730386,1751333441464,-490.0,0.00013864,2]
[368730387,1751333441476,-490.0,0.00013864,2]
[368730388,1751333441485,-1282.06,0.00013864,2]
[368730389,1751333441495,-1152.13,0.00013864,2]
[368730390,1751333441506,-490.0,0.00013864,2]
[368730391,1751333441515,-490.0,0.00013864,2]
[368730392,1751333441525,-490.0,0.00013864,2]
[368730393,1751333441540,-490.0,0.00013864,2]
[368730394,1751333441550,-490.0,0.00013864,2]
[368730395,1751333441560,-1334.27,0.00013864,2]
[368730396,1751333441570,-958.78,0.00013864,2]
[368730397,1751333441581,-490.0,0.00013864,2]
[368730398,1751333441591,-1231.03,0.00013864,2]
[368730400,1751333441601,-966.05,0.00013864,2]
[368730402,1751333441611,-490.0,0.00013864,2]
[368730404,1751333441621,-490.0,0.00013864,2]
[368730405,1751333441632,-617.08,0.00013864,2]
[368730406,1751333441642,-2839.4,0.00013864,2]
[368730407,1751333441653,-1265.19,0.00013864,2]
[368730408,1751333441663,-2807.1,0.00013864,2]
[368730409,1751333441673,-2554.51047817,0.00013865,2]
[368730410,1751333441739,-1950.0,0.00013865,2]
[368730411,1751333441766,-495.48952183,0.00013865,2]
[368730412,1751333441778,-4.51047817,0.00013866,2]
[368730413,1751333441967,-979.21768025,0.00013866,2]
[368730414,1751333441980,-1000.0,0.00013866,2]
[368730415,1751333441990,-353.07,0.00013873,2]
[368730416,1751333442001,-983.72815842,0.00013877,2]
[368730417,1751333442013,-5.8265214,0.00013881,2]
[368730418,1751333442034,-295.506,0.00013881,2]
[368730420,1751333443344,-198.6674786,0.00013881,2]
[368730421,1751333443356,-338.70896517,0.00013881,2]
[368730422,1751333443368,-75.47836566,0.00013881,2]
[368730423,1751333443463,-372.05,0.00013881,2]
[368730424,1751333443665,-52.47163434,0.00013881,2]
[368730425,1751333443675,-500.0,0.00013881,2]
[368730426,1751333443685,-500.0,0.00013881,2]
[368730427,1751333443697,-500.0,0.00013881,2]
[368730428,1751333443707,-500.0,0.00013881,2]
[368730429,1751333443717,-500.0,0.00013881,2]
[368730430,1751333443727,-500.0,0.00013881,2]
[368730431,1751333443736,-600.21032619,0.00013881,2]
[368730432,1751333443746,-500.0,0.00013881,2]
[368730433,1751333443757,-500.0,0.00013881,2]
[368730434,1751333443767,-500.0,0.00013881,2]
[368730435,1751333443777,-424.32737529,0.00013881,2]
[368730602,1751333446476,-75.67262471,0.00013881,2]
[368730604,1751333446487,-333.11527386,0.00013881,2]
[368731567,1751333458003,500.0,0.00012931,2]
[368731568,1751333462642,10629.18354405,0.00012947,2]
[368731569,1751333462667,13270.81645595,0.00012947,2]
[368731570,1751333472149,1011.73,0.00027397,120]
[368731571,1751333484877,351.92,0.00012942,2]
[368731572,1751333488752,177.33062712,0.00013782,7]
[368731575,1751333549284,8495.02,0.00012874,2]
[368731578,1751333750481,166.5,0.00012852,2]
[368731579,1751333805283,226.0,0.000131,2]
[368731580,1751333851449,562.39,0.00012852,2]
[368731581,1751333874068,250.0,0.00012847,2]
[368731582,1751333874117,1136.0,0.00027397,120]
[368731583,1751333967834,200.0,0.00012846,2]
[368731584,1751334000321,1000.0,0.0001284,2]
[368731585,1751334070107,200.0,0.00012833,7]
[368731586,1751334093969,558.81,0.00012837,2]
[368731587,1751334117601,700.0,0.00027397,120]
[368731588,1751334117851,700.0,0.00027397,120]
[368731589,1751334118145,700.0,0.00027397,120]
[368731590,1751334118347,700.0,0.00027397,120]
[368731591,1751334118593,700.0,0.00027397,120]
[368731592,1751334118863,700.0,0.00027397,120]
[368731593,1751334119136,700.0,0.00027397,120]
[368731594,1751334119711,700.0,0.00027397,120]
[368731595,1751334119966,700.0,0.00027397,120]
[368731596,1751334120236,700.0,0.00027397,120]
[368731597,1751334120466,700.0,0.00027397,120]
[368731598,1751334120741,700.0,0.00027397,120]
[368731599,1751334120993,700.0,0.00027397,120]
[368731600,1751334121248,700.0,0.00027397,120]
[368731601,1751334121520,700.0,0.00027397,120]
[368731602,1751334122161,442.26996434,0.00027397,120]
[368731603,1751334223340,251.4,0.00027397,120]
[368731604,1751334240794,321.37,0.00012823,2]
[368731605,1751334273420,150.0,0.00012823,2]
[368731613,1751334474745,753.0,0.00027397,120]
[368731616,1751334542264,-169.55790421,0.0001313,2]
[368731617,1751334542632,14447.17354405,0.00012823,2]
[368731618,1751334542659,9452.82645595,0.00012823,2]
[368731619,1751334545052,-256.08343801,0.0001313,2]
[368731620,1751334549861,-153.28296803,0.0001313,2]
[368731621,1751334551498,-147.70313075,0.0001313,2]
[368731622,1751334556600,4723.04,0.00027397,120]
[368731865,1751334631587,-250.0,0.00013297,2]
[368731866,1751334631597,-168.94,0.0001333,2]
[368731867,1751334631607,-871.09926664,0.0001353,2]
[368731868,1751334631617,-158.85992461,0.0001365,2]
[368731869,1751334631628,-131.76436175,0.00013699,2]
[368731870,1751334631641,-309.63563825,0.00013699,2]
[368731871,1751334631653,-150.0,0.00013717,2]
[368731872,1751334631663,-128.28439577,0.00013719,2]
[368731873,1751334631675,-35.65700223,0.00013719,2]
[368731874,1751334631684,-250.49470409,0.00013746,2]
[368731875,1751334631694,-175.25706,0.0001375,2]
[368731876,1751334631703,-158.8599246,0.00013764,2]
[368731877,1751334631713,-615.1442,0.00013764,2]
[368731878,1751334631723,-1200.0,0.00013772,2]
[368731879,1751334631732,-178.07425547,0.00013772,2]
[368731880,1751334631744,-421.92574453,0.00013772,2]
[368731881,1751334631755,-178.63481988,0.00013773,2]
[368731882,1751334631816,-28.76518012,0.00013773,2]
[368731883,1751334631827,-1304.95481988,0.00013773,2]
[368731884,1751334631849,-302.0,0.00013773,2]
[368731886,1751334631861,-679.39204211,0.00013773,2]
[368731888,1751334631873,-300.0,0.00013773,2]
[368731890,1751334631883,-300.0,0.00013774,2]
[368731892,1751334631893,-462.20702043,0.00013774,2]
[368731894,1751334631902,-151.5821871,0.00013774,2]
[368731896,1751334631914,-500.0,0.00013774,2]
[368731898,1751334631923,-500.0,0.00013774,2]
[368731900,1751334631933,-500.0,0.00013774,2]
[368731902,1751334631944,-238.06024382,0.00013774,2]
[368732039,1751334637520,-261.93975618,0.00013774,2]
[368732040,1751334637532,-500.0,0.00013774,2]
[368732041,1751334637543,-172.67707147,0.00013774,2]
[368732042,1751334637553,-500.0,0.00013774,2]
[368732043,1751334637564,-421.71886187,0.00013774,2]
[368732044,1751334637575,-500.0,0.00013774,2]
[368732045,1751334637587,-159.63229926,0.00013774,2]
[368732046,1751334637598,-1247.17909333,0.00013779,2]
[368732047,1751334637730,-2131.6595859,0.00013779,2]
[368732048,1751334637741,-164.72780786,0.00013779,2]
[368732049,1751334637752,-503.53626725,0.0001378,2]
[368732050,1751334637763,-835.8297818,0.00013781,2]
[368732051,1751334637773,-443.99939766,0.00013781,2]
[368732052,1751334637783,-1734.00709953,0.00013782,2]
[368732087,1751334639633,-535.64453871,0.00013782,2]
[368732089,1751334639646,-7072.02836176,0.00013782,2]
[368732091,1751334639656,-152.00962629,0.00013783,2]
[368732093,1751334639666,-971.6362,0.00013783,2]
[368732095,1751334639675,-685.1775,0.00013783,2]
[368732097,1751334639686,-869.1860269,0.0001379,2]
[368732099,1751334639697,-3378.83867922,0.00013792,2]
[368732101,1751334639706,-503.53626717,0.00013793,2]
[368732103,1751334639717,-303.21341423,0.00013797,2]
[368732104,1751334639726,-5072.11,0.000138,2]
[368732106,1751334639736,-150.0,0.00013804,2]
[368732108,1751334639746,-3378.83867922,0.00013806,2]
[368732110,1751334639756,-503.53626717,0.00013807,2]
[368732112,1751334639766,-164.72780784,0.00013809,2]
[368732114,1751334639776,-3378.83867922,0.00013819,2]
[368732116,1751334639787,-503.53626717,0.0001382,2]
[368732118,1751334639797,-946.494,0.00013821,2]
[368732120,1751334639807,-1290.00671513,0.00013824,2]
[368732122,1751334639817,-3378.83867922,0.00013833,2]
[368732124,1751334639826,-503.53626717,0.00013833,2]
[368732126,1751334639836,-164.72780784,0.0001384,2]
[368732128,1751334639845,-171.5372039,0.00013843,2]
[368732130,1751334639856,-3378.83867922,0.00013846,2]
[368732132,1751334639866,-503.53626717,0.00013847,2]
[368732134,1751334639879,-3378.83867922,0.0001386,2]
[368732136,1751334639889,-503.53626717,0.0001386,2]
[368732138,1751334639899,-151.0,0.00013864,2]
[368732140,1751334639909,-151.0,0.00013864,2]
[368732142,1751334639918,-151.0,0.00013864,2]
[368732144,1751334639929,-151.0,0.00013864,2]
[368732146,1751334639938,-1334.19436546,0.00013864,2]
[368732150,1751334639964,-296.36229298,0.00013864,2]
[368732414,1751334642754,-4927.8552,0.00013781,2]
[368732416,1751334642763,-2383.6,0.00013864,2]
[368732418,1751334642773,-2719.69,0.00013864,2]
[368732420,1751334642783,-164.72780784,0.0001387,2]
[368732422,1751334642792,-175.25705,0.0001387,2]
[368732424,1751334642802,-1003.07,0.0001387,2]
[368732426,1751334642812,-269.51508931,0.0001387,2]
[368732428,1751334642821,-246.36800403,0.00013872,2]
[368732430,1751334642831,-500.0,0.00013873,2]
[368732432,1751334642840,-500.0,0.00013873,2]
[368732434,1751334642849,-500.0,0.00013873,2]
[368732436,1751334642858,-501.98079408,0.00013873,2]
[368732437,1751334642868,-500.0,0.00013873,2]
[368732439,1751334642881,-502.23914883,0.00013873,2]
[368732441,1751334642890,-501.62112977,0.00013873,2]
[368732444,1751334642900,-503.44521575,0.00013873,2]
[368732445,1751334642909,-643.26790235,0.00013873,2]
[368732447,1751334642921,-152.662275,0.00013873,2]
[368732449,1751334642930,-151.0,0.00013873,2]
[368732451,1751334642939,-151.0,0.00013873,2]
[368732453,1751334642950,-152.268287,0.00013873,2]
[368732455,1751334642961,-151.0,0.00013873,2]